[Event "*** SCC Grand Prix: Titled Tuesday Blitz"]
[Site "Chess.com"]
[Date "2020.10.13"]
[Round "10"]
[White "Jumbo"]
[Black "gmpeter008"]
[Result "1-0"]
[WhiteElo "2756"]
[BlackElo "2418"]
[TimeControl "180+1"]
[EndTime "11:55:54 PDT"]
[Termination "Jumbo won on time"]

1. Nf3 {[%clk 0:03:00.9]} 1... d5 {[%clk 0:02:58.6]} 2. g3 {[%clk 0:03:01.8]}
2... Nf6 {[%clk 0:02:57.2]} 3. Bg2 {[%clk 0:03:02.3]} 3... c5 {[%clk 0:02:57.7]}
4. c4 {[%clk 0:02:57.1]} 4... dxc4 {[%clk 0:02:53.5]} 5. Qa4+ {[%clk 0:02:47]}
5... Bd7 {[%clk 0:02:52.7]} 6. Qxc4 {[%clk 0:02:46.7]} 6... e6 {[%clk
0:02:52.8]} 7. Nc3 {[%clk 0:02:43.5]} 7... Bc6 {[%clk 0:02:51.4]} 8. O-O {[%clk
0:02:41.7]} 8... Nbd7 {[%clk 0:02:50.8]} 9. e4 {[%clk 0:02:42.1]} 9... Rc8
{[%clk 0:02:48.1]} 10. Qe2 {[%clk 0:02:40.2]} 10... c4 {[%clk 0:02:28.3]} 11. b3
{[%clk 0:02:39.3]} 11... cxb3 {[%clk 0:02:26.4]} 12. axb3 {[%clk 0:02:38.9]}
12... a6 {[%clk 0:02:21.1]} 13. Bb2 {[%clk 0:02:27.8]} 13... Bb4 {[%clk
0:02:18.9]} 14. Nd4 {[%clk 0:01:38.3]} 14... Ne5 {[%clk 0:01:57.4]} 15. Na2
{[%clk 0:01:37.7]} 15... Bc5 {[%clk 0:01:49.8]} 16. Nxe6 {[%clk 0:01:00.3]}
16... fxe6 {[%clk 0:01:49.4]} 17. Bxe5 {[%clk 0:01:00.7]} 17... Bb5 {[%clk
0:01:49.3]} 18. Qf3 {[%clk 0:00:44.2]} 18... Bxf1 {[%clk 0:01:48.4]} 19. Rxf1
{[%clk 0:00:45.1]} 19... O-O {[%clk 0:01:48.3]} 20. Bh3 {[%clk 0:00:44.5]} 20...
Rc6 {[%clk 0:01:34.7]} 21. d4 {[%clk 0:00:27.9]} 21... Bxd4 {[%clk 0:01:09.3]}
22. Rd1 {[%clk 0:00:28.2]} 22... Bxf2+ {[%clk 0:00:39.7]} 23. Kxf2 {[%clk
0:00:28.1]} 23... Nxe4+ {[%clk 0:00:21.8]} 24. Kg2 {[%clk 0:00:17.1]} 24... Rc2+
{[%clk 0:00:21.7]} 25. Kg1 {[%clk 0:00:14.9]} 25... Qb6+ {[%clk 0:00:19.3]} 26.
Bd4 {[%clk 0:00:15]} 26... Rxf3 {[%clk 0:00:11.5]} 27. Bxb6 {[%clk 0:00:13.6]}
27... Rxa2 {[%clk 0:00:12.4]} 28. Bxe6+ {[%clk 0:00:11.4]} 28... Kf8 {[%clk
0:00:13]} 29. Bd5 {[%clk 0:00:11.2]} 29... Nc3 {[%clk 0:00:12.2]} 30. Bc5+
{[%clk 0:00:09.8]} 30... Ke8 {[%clk 0:00:12.4]} 31. Re1+ {[%clk 0:00:09.4]}
31... Re2 {[%clk 0:00:12.6]} 32. Bxf3 {[%clk 0:00:05.3]} 32... Rxe1+ {[%clk
0:00:12.6]} 33. Kg2 {[%clk 0:00:05.8]} 33... Re6 {[%clk 0:00:12.2]} 34. Bxb7
{[%clk 0:00:05.6]} 34... Nb5 {[%clk 0:00:11.2]} 35. b4 {[%clk 0:00:05.4]} 35...
Kd7 {[%clk 0:00:08.6]} 36. Bf3 {[%clk 0:00:03.8]} 36... g6 {[%clk 0:00:08.9]}
37. Bg4 {[%clk 0:00:03.7]} 37... Nc3 {[%clk 0:00:08.7]} 38. Kf3 {[%clk
0:00:03.7]} 38... Nd5 {[%clk 0:00:08.4]} 39. h4 {[%clk 0:00:02.6]} 39... h5
{[%clk 0:00:07.7]} 40. Bh3 {[%clk 0:00:02.9]} 40... Nf6 {[%clk 0:00:07.7]} 41.
Bxe6+ {[%clk 0:00:03.1]} 41... Kxe6 {[%clk 0:00:07.9]} 42. Kf4 {[%clk
0:00:03.7]} 42... Kf7 {[%clk 0:00:05.9]} 43. Ke5 {[%clk 0:00:03.5]} 43... Ng4+
{[%clk 0:00:05.7]} 44. Kd6 {[%clk 0:00:03.9]} 44... Nh2 {[%clk 0:00:05.7]} 45.
Kc6 {[%clk 0:00:04]} 45... Nf1 {[%clk 0:00:06]} 46. Bd6 {[%clk 0:00:04.5]} 46...
Ne3 {[%clk 0:00:05.3]} 47. Kb7 {[%clk 0:00:04.9]} 47... Nd5 {[%clk 0:00:04.9]}
48. Kxa6 {[%clk 0:00:04.5]} 48... Ke6 {[%clk 0:00:05.8]} 49. Bc5 {[%clk
0:00:04.8]} 49... Kf5 {[%clk 0:00:03.6]} 50. b5 {[%clk 0:00:04.9]} 50... Kg4
{[%clk 0:00:03.3]} 51. Bd6 {[%clk 0:00:05.4]} 51... g5 {[%clk 0:00:03.8]} 52. b6
{[%clk 0:00:05.5]} 52... Nxb6 {[%clk 0:00:02]} 53. hxg5 {[%clk 0:00:05.8]} 1-0

[Event "*** SCC Grand Prix: Titled Tuesday Blitz"]
[Site "Chess.com"]
[Date "2020.10.13"]
[Round "10"]
[White "Sn00pPawn"]
[Black "tan275"]
[Result "1-0"]
[WhiteElo "1980"]
[BlackElo "2182"]
[TimeControl "180+1"]
[EndTime "11:55:55 PDT"]
[Termination "Sn00pPawn won by resignation"]

1. e4 {[%clk 0:03:00.9]} 1... c6 {[%clk 0:02:59.9]} 2. d4 {[%clk 0:03:00.4]}
2... d5 {[%clk 0:03:00.5]} 3. Nc3 {[%clk 0:02:59.6]} 3... dxe4 {[%clk
0:03:00.6]} 4. Nxe4 {[%clk 0:03:00.1]} 4... Bf5 {[%clk 0:03:01.2]} 5. Ng3 {[%clk
0:02:59.8]} 5... Bg6 {[%clk 0:03:01.7]} 6. Nf3 {[%clk 0:02:57.7]} 6... e6 {[%clk
0:03:01.6]} 7. Ne5 {[%clk 0:02:56.7]} 7... Bd6 {[%clk 0:02:54.6]} 8. Nxg6 {[%clk
0:02:56.2]} 8... hxg6 {[%clk 0:02:53.3]} 9. Ne4 {[%clk 0:02:56.3]} 9... Be7
{[%clk 0:02:44.7]} 10. Bf4 {[%clk 0:02:55.2]} 10... Nf6 {[%clk 0:02:43.8]} 11.
Qd3 {[%clk 0:02:39.2]} 11... Na6 {[%clk 0:02:36.3]} 12. O-O-O {[%clk 0:02:27.8]}
12... Nb4 {[%clk 0:02:30.1]} 13. Nxf6+ {[%clk 0:02:27.5]} 13... Bxf6 {[%clk
0:02:21.5]} 14. Qb3 {[%clk 0:02:27.6]} 14... Nd5 {[%clk 0:02:18.2]} 15. Bg3
{[%clk 0:02:26.5]} 15... Qb6 {[%clk 0:02:06.4]} 16. Bc4 {[%clk 0:02:04.6]} 16...
Qxb3 {[%clk 0:02:00.2]} 17. Bxb3 {[%clk 0:02:03.1]} 17... O-O-O {[%clk
0:01:59.7]} 18. c3 {[%clk 0:01:51.3]} 18... g5 {[%clk 0:01:56.5]} 19. Bxd5
{[%clk 0:01:34.3]} 19... Rxd5 {[%clk 0:01:53.2]} 20. h3 {[%clk 0:01:30]} 20...
b5 {[%clk 0:01:45.5]} 21. a3 {[%clk 0:01:18.6]} 21... a5 {[%clk 0:01:42.4]} 22.
Kc2 {[%clk 0:01:15.5]} 22... Kb7 {[%clk 0:01:33.9]} 23. Rde1 {[%clk 0:01:03.7]}
23... Rhd8 {[%clk 0:01:28.9]} 24. Re2 {[%clk 0:01:00.3]} 24... b4 {[%clk
0:01:15.4]} 25. axb4 {[%clk 0:00:58.4]} 25... axb4 {[%clk 0:01:15.4]} 26. Kb3
{[%clk 0:00:59.1]} 26... Rb5 {[%clk 0:00:56.3]} 27. c4 {[%clk 0:00:33.9]} 27...
Rb6 {[%clk 0:00:49.7]} 28. Be5 {[%clk 0:00:25.8]} 28... Bxe5 {[%clk 0:00:49.1]}
29. dxe5 {[%clk 0:00:26.7]} 29... c5 {[%clk 0:00:48.6]} 30. Ra1 {[%clk
0:00:12.9]} 30... Rd3+ {[%clk 0:00:34.9]} 31. Kc2 {[%clk 0:00:13]} 31... Rd4
{[%clk 0:00:30.4]} 32. b3 {[%clk 0:00:11.8]} 32... Ra6 {[%clk 0:00:29.6]} 33.
Rxa6 {[%clk 0:00:10.3]} 33... Kxa6 {[%clk 0:00:29.8]} 34. f3 {[%clk 0:00:08]}
34... Kb6 {[%clk 0:00:25.5]} 35. Rd2 {[%clk 0:00:07.9]} 35... Rxd2+ {[%clk
0:00:05.7]} 36. Kxd2 {[%clk 0:00:08.8]} 36... Kc6 {[%clk 0:00:03]} 37. Ke3
{[%clk 0:00:08.4]} 37... f6 {[%clk 0:00:03.4]} 38. Ke4 {[%clk 0:00:05.7]} 38...
f5+ {[%clk 0:00:03.1]} 39. Ke3 {[%clk 0:00:05.8]} 39... Kd7 {[%clk 0:00:03.2]}
40. h4 {[%clk 0:00:04.5]} 40... gxh4 {[%clk 0:00:02.7]} 41. Kf4 {[%clk
0:00:04.5]} 41... Ke7 {[%clk 0:00:02.8]} 42. Kg5 {[%clk 0:00:04.7]} 42... Kf7
{[%clk 0:00:03]} 43. f4 {[%clk 0:00:04.3]} 43... Kg8 {[%clk 0:00:02.3]} 44. Kxh4
{[%clk 0:00:03.9]} 44... Kh7 {[%clk 0:00:02.6]} 45. Kg5 {[%clk 0:00:03.6]} 45...
Kg8 {[%clk 0:00:02.5]} 46. g4 {[%clk 0:00:02]} 46... Kf8 {[%clk 0:00:02.9]} 47.
gxf5 {[%clk 0:00:02.1]} 47... exf5 {[%clk 0:00:02.9]} 48. Kxf5 {[%clk 0:00:03]}
48... Ke7 {[%clk 0:00:03.8]} 49. Kg6 {[%clk 0:00:03.2]} 49... Kf8 {[%clk
0:00:04.4]} 50. f5 {[%clk 0:00:02.8]} 50... Kg8 {[%clk 0:00:04.3]} 51. f6 {[%clk
0:00:03.7]} 51... gxf6 {[%clk 0:00:03.7]} 52. exf6 {[%clk 0:00:04.4]} 52... Kf8
{[%clk 0:00:04.1]} 53. f7 {[%clk 0:00:05.3]} 53... Ke7 {[%clk 0:00:04.8]} 54.
Kg7 {[%clk 0:00:06.2]} 1-0

[Event "*** SCC Grand Prix: Titled Tuesday Blitz"]
[Site "Chess.com"]
[Date "2020.10.13"]
[Round "10"]
[White "Indianlad"]
[Black "swimmerchess"]
[Result "0-1"]
[WhiteElo "2897"]
[BlackElo "2793"]
[TimeControl "180+1"]
[EndTime "11:56:03 PDT"]
[Termination "swimmerchess won by resignation"]

1. Nf3 {[%clk 0:03:00.3]} 1... Nf6 {[%clk 0:02:58.9]} 2. g3 {[%clk 0:03:00.6]}
2... g6 {[%clk 0:02:59.5]} 3. Bg2 {[%clk 0:03:01]} 3... Bg7 {[%clk 0:03:00.4]}
4. b3 {[%clk 0:03:01.2]} 4... O-O {[%clk 0:03:01.3]} 5. Bb2 {[%clk 0:03:01.6]}
5... d6 {[%clk 0:03:02.1]} 6. d4 {[%clk 0:03:02]} 6... e5 {[%clk 0:03:01.8]} 7.
dxe5 {[%clk 0:03:01.9]} 7... Nfd7 {[%clk 0:03:02.4]} 8. O-O {[%clk 0:02:57.7]}
8... Nc6 {[%clk 0:03:00.7]} 9. c4 {[%clk 0:02:55.8]} 9... dxe5 {[%clk
0:02:59.9]} 10. Nc3 {[%clk 0:02:50.4]} 10... e4 {[%clk 0:02:59.5]} 11. Ne1
{[%clk 0:02:46.1]} 11... f5 {[%clk 0:02:59.2]} 12. Nc2 {[%clk 0:02:46.7]} 12...
Nde5 {[%clk 0:02:59]} 13. Ne3 {[%clk 0:02:46.1]} 13... Be6 {[%clk 0:02:58.7]}
14. Ned5 {[%clk 0:02:45]} 14... Qg5 {[%clk 0:02:53.2]} 15. Nxc7 {[%clk
0:02:43.7]} 15... Bf7 {[%clk 0:02:28.7]} 16. Nxa8 {[%clk 0:02:43.2]} 16... Rxa8
{[%clk 0:02:29.6]} 17. f4 {[%clk 0:02:41.5]} 17... exf3 {[%clk 0:02:28.3]} 18.
exf3 {[%clk 0:02:42.2]} 18... Rd8 {[%clk 0:02:27.1]} 19. f4 {[%clk 0:02:25.1]}
19... Qe7 {[%clk 0:02:13.2]} 20. Nd5 {[%clk 0:02:24.4]} 20... Qc5+ {[%clk
0:02:12.4]} 21. Kh1 {[%clk 0:02:23.9]} 21... Nxc4 {[%clk 0:02:01.7]} 22. bxc4
{[%clk 0:02:23.9]} 22... Bxb2 {[%clk 0:02:01.1]} 23. Rb1 {[%clk 0:02:24.4]}
23... Bd4 {[%clk 0:01:54.2]} 24. Qd3 {[%clk 0:02:05.1]} 24... b6 {[%clk
0:01:46]} 25. h4 {[%clk 0:01:57.4]} 25... Kg7 {[%clk 0:01:44.7]} 26. Rfd1 {[%clk
0:01:52.7]} 26... Re8 {[%clk 0:01:39.9]} 27. Re1 {[%clk 0:01:47.7]} 27... Rd8
{[%clk 0:01:37.1]} 28. a3 {[%clk 0:01:44.3]} 28... Na5 {[%clk 0:01:30.6]} 29.
Rbd1 {[%clk 0:01:41.3]} 29... Bb2 {[%clk 0:01:26.8]} 30. Bf1 {[%clk 0:01:10.4]}
30... Nxc4 {[%clk 0:01:16.7]} 31. Re7 {[%clk 0:01:10.1]} 31... Rxd5 {[%clk
0:01:10.8]} 32. Qxd5 {[%clk 0:01:07.5]} 32... Qxe7 {[%clk 0:01:09]} 33. Qc6
{[%clk 0:00:57.9]} 33... Qe4+ {[%clk 0:00:36.6]} 34. Qxe4 {[%clk 0:00:56.6]}
34... fxe4 {[%clk 0:00:37.5]} 35. Rd7 {[%clk 0:00:55.7]} 35... b5 {[%clk
0:00:35.9]} 36. a4 {[%clk 0:00:55.1]} 36... a6 {[%clk 0:00:35.9]} 37. axb5
{[%clk 0:00:55.7]} 37... axb5 {[%clk 0:00:36.8]} 38. Rb7 {[%clk 0:00:56.4]}
38... e3 {[%clk 0:00:33.7]} 39. Rxb5 {[%clk 0:00:56]} 39... Bd4 {[%clk
0:00:32.1]} 40. Rb4 {[%clk 0:00:46.5]} 40... Bd5+ {[%clk 0:00:23.3]} 41. Kh2
{[%clk 0:00:46.9]} 41... Nd2 {[%clk 0:00:23.7]} 42. Be2 {[%clk 0:00:47.4]} 42...
Bc3 {[%clk 0:00:20.9]} 43. Rb5 {[%clk 0:00:43.2]} 43... Bf3 {[%clk 0:00:21.1]}
44. Rc5 {[%clk 0:00:28.8]} 44... Bb4 {[%clk 0:00:14.6]} 45. Rc7+ {[%clk
0:00:28.7]} 45... Kh6 {[%clk 0:00:14.7]} 46. Bd3 {[%clk 0:00:19.5]} 46... e2
{[%clk 0:00:14.5]} 47. Bxe2 {[%clk 0:00:18.7]} 47... Bxe2 {[%clk 0:00:15.4]} 48.
Kg2 {[%clk 0:00:16.1]} 48... Ne4 {[%clk 0:00:14.8]} 49. Kh3 {[%clk 0:00:12.2]}
49... Be1 {[%clk 0:00:13.1]} 50. Re7 {[%clk 0:00:09.8]} 50... Bf1+ {[%clk
0:00:13.3]} 51. Kh2 {[%clk 0:00:10.2]} 51... Bxg3+ {[%clk 0:00:13.2]} 52. Kg1
{[%clk 0:00:10.6]} 52... Bd3 {[%clk 0:00:13.7]} 53. Kg2 {[%clk 0:00:09.8]} 53...
Bxf4 {[%clk 0:00:13.1]} 54. Kf3 {[%clk 0:00:10.4]} 54... Bd6 {[%clk 0:00:11.2]}
55. Re6 {[%clk 0:00:09.1]} 55... Kg7 {[%clk 0:00:06.6]} 56. Ke3 {[%clk
0:00:08.3]} 56... Bf8 {[%clk 0:00:05.9]} 57. Ra6 {[%clk 0:00:05.8]} 57... Bxa6
{[%clk 0:00:05.5]} 0-1

[Event "*** SCC Grand Prix: Titled Tuesday Blitz"]
[Site "Chess.com"]
[Date "2020.10.13"]
[Round "10"]
[White "rasmussvane"]
[Black "Tooweak2slow03"]
[Result "1-0"]
[WhiteElo "2906"]
[BlackElo "2771"]
[TimeControl "180+1"]
[EndTime "11:56:06 PDT"]
[Termination "rasmussvane won by resignation"]

1. Nf3 {[%clk 0:03:00.9]} 1... e6 {[%clk 0:03:00.2]} 2. g3 {[%clk 0:03:01.1]}
2... b6 {[%clk 0:03:00.5]} 3. Bg2 {[%clk 0:03:01.7]} 3... Bb7 {[%clk 0:03:01.4]}
4. O-O {[%clk 0:03:02.2]} 4... f5 {[%clk 0:03:01.9]} 5. d3 {[%clk 0:03:02.2]}
5... Nf6 {[%clk 0:03:02.4]} 6. e4 {[%clk 0:03:01.7]} 6... fxe4 {[%clk
0:03:02.4]} 7. Ng5 {[%clk 0:03:01.2]} 7... Be7 {[%clk 0:03:02]} 8. dxe4 {[%clk
0:02:37.2]} 8... Nc6 {[%clk 0:03:01.5]} 9. e5 {[%clk 0:02:36.1]} 9... Ng8 {[%clk
0:02:32.3]} 10. h4 {[%clk 0:02:23.9]} 10... Qc8 {[%clk 0:02:24.6]} 11. Qh5+
{[%clk 0:02:19.2]} 11... g6 {[%clk 0:02:20.3]} 12. Qf3 {[%clk 0:02:17]} 12...
Nd8 {[%clk 0:02:20.4]} 13. Ne4 {[%clk 0:02:15.1]} 13... Nf7 {[%clk 0:02:20.5]}
14. Bf4 {[%clk 0:02:06.4]} 14... Ngh6 {[%clk 0:02:18.3]} 15. Nbc3 {[%clk
0:02:03.6]} 15... Nf5 {[%clk 0:02:15.7]} 16. Rad1 {[%clk 0:02:01.6]} 16... O-O
{[%clk 0:02:12.4]} 17. Qg4 {[%clk 0:02:01.7]} 17... N7h6 {[%clk 0:02:08.1]} 18.
Qe2 {[%clk 0:02:01.1]} 18... Nf7 {[%clk 0:02:05.3]} 19. Bh3 {[%clk 0:01:48.8]}
19... Kh8 {[%clk 0:02:00.3]} 20. Rfe1 {[%clk 0:01:39.9]} 20... Bc6 {[%clk
0:01:47.3]} 21. Nf6 {[%clk 0:01:28.1]} 21... Bxf6 {[%clk 0:01:44.7]} 22. exf6
{[%clk 0:01:29]} 22... Qb7 {[%clk 0:01:45.3]} 23. Qd2 {[%clk 0:01:15.3]} 23...
Bf3 {[%clk 0:01:27.2]} 24. Qxd7 {[%clk 0:01:11.7]} 24... Bxd1 {[%clk 0:01:24.8]}
25. Nxd1 {[%clk 0:01:12.3]} 25... Rad8 {[%clk 0:01:22.1]} 26. Qxe6 {[%clk
0:01:08.7]} 26... Qf3 {[%clk 0:01:15.5]} 27. Bxf5 {[%clk 0:01:04.7]} 27... Rxd1
{[%clk 0:01:13.5]} 28. Bd3 {[%clk 0:00:54.6]} 28... Rxe1+ {[%clk 0:01:08.7]} 29.
Qxe1 {[%clk 0:00:55.5]} 29... Qc6 {[%clk 0:01:09.3]} 30. Qe7 {[%clk 0:00:49.6]}
30... Kg8 {[%clk 0:01:04.8]} 31. Be4 {[%clk 0:00:49.4]} 31... Qb5 {[%clk
0:01:02.2]} 32. a4 {[%clk 0:00:47.1]} 32... Qe8 {[%clk 0:00:59.8]} 33. Bd5
{[%clk 0:00:34.4]} 33... Qxe7 {[%clk 0:00:56.7]} 34. fxe7 {[%clk 0:00:35.3]}
34... Re8 {[%clk 0:00:57.6]} 35. Bg5 {[%clk 0:00:35.9]} 35... Kg7 {[%clk
0:00:55.2]} 36. Bc6 {[%clk 0:00:36.1]} 36... Nd6 {[%clk 0:00:52.6]} 37. Bxe8
{[%clk 0:00:36.5]} 37... Nxe8 {[%clk 0:00:53.5]} 38. Kg2 {[%clk 0:00:34.8]}
38... Kf7 {[%clk 0:00:50.9]} 39. Kf3 {[%clk 0:00:34.9]} 39... Nd6 {[%clk
0:00:49.4]} 40. Bf4 {[%clk 0:00:33.6]} 40... Ne8 {[%clk 0:00:48]} 41. Ke4 {[%clk
0:00:32.6]} 41... Kxe7 {[%clk 0:00:47]} 42. Ke5 {[%clk 0:00:29.8]} 42... c6
{[%clk 0:00:45.6]} 43. b3 {[%clk 0:00:30]} 43... Nc7 {[%clk 0:00:43.8]} 44. Bg5+
{[%clk 0:00:30.1]} 44... Kd7 {[%clk 0:00:42.6]} 45. Kf6 {[%clk 0:00:29.9]} 45...
Ne6 {[%clk 0:00:41.7]} 46. Be3 {[%clk 0:00:29.6]} 46... c5 {[%clk 0:00:40.6]}
47. Kf7 {[%clk 0:00:29.6]} 47... a6 {[%clk 0:00:36.8]} 48. Kg8 {[%clk
0:00:29.7]} 48... Ke8 {[%clk 0:00:35.4]} 49. g4 {[%clk 0:00:27.9]} 49... h5
{[%clk 0:00:31.8]} 50. gxh5 {[%clk 0:00:23.5]} 50... gxh5 {[%clk 0:00:32.7]} 51.
f4 {[%clk 0:00:24.1]} 51... Nd8 {[%clk 0:00:30.1]} 52. Kg7 {[%clk 0:00:22.4]}
52... b5 {[%clk 0:00:27.8]} 53. axb5 {[%clk 0:00:22.2]} 53... axb5 {[%clk
0:00:28.7]} 54. f5 {[%clk 0:00:22.4]} 54... c4 {[%clk 0:00:27.2]} 55. bxc4
{[%clk 0:00:22.3]} 55... bxc4 {[%clk 0:00:27.3]} 56. Kg6 {[%clk 0:00:20.3]}
56... Kf8 {[%clk 0:00:26.1]} 57. Bc5+ {[%clk 0:00:17.9]} 57... Kg8 {[%clk
0:00:23.4]} 58. Kxh5 {[%clk 0:00:18.1]} 58... Kg7 {[%clk 0:00:22.7]} 59. Bd4+
{[%clk 0:00:17.4]} 59... Kf7 {[%clk 0:00:21.6]} 60. Kg5 {[%clk 0:00:17.9]} 60...
Nc6 {[%clk 0:00:20.9]} 61. Bc3 {[%clk 0:00:16.9]} 61... Nb8 {[%clk 0:00:20.3]}
62. h5 {[%clk 0:00:17.1]} 62... Nd7 {[%clk 0:00:20.4]} 63. h6 {[%clk 0:00:17.2]}
63... Nf8 {[%clk 0:00:21.3]} 64. Bg7 {[%clk 0:00:17]} 64... Nh7+ {[%clk
0:00:21.5]} 65. Kh5 {[%clk 0:00:14.7]} 65... Kg8 {[%clk 0:00:20.6]} 66. Kg6
{[%clk 0:00:13.9]} 66... c3 {[%clk 0:00:19.2]} 67. f6 {[%clk 0:00:10.7]} 67...
Nxf6 {[%clk 0:00:08.9]} 68. Bxf6 {[%clk 0:00:10.8]} 1-0

[Event "*** SCC Grand Prix: Titled Tuesday Blitz"]
[Site "Chess.com"]
[Date "2020.10.13"]
[Round "10"]
[White "TomiLen"]
[Black "LedakovAlexandr"]
[Result "1-0"]
[WhiteElo "2598"]
[BlackElo "2461"]
[TimeControl "180+1"]
[EndTime "11:56:06 PDT"]
[Termination "TomiLen won by resignation"]

1. d4 {[%clk 0:03:00.9]} 1... Nc6 {[%clk 0:03:00.9]} 2. Nf3 {[%clk 0:03:00.1]}
2... d6 {[%clk 0:03:01.2]} 3. e4 {[%clk 0:02:57]} 3... g6 {[%clk 0:02:32.4]} 4.
Be2 {[%clk 0:02:55]} 4... Bg7 {[%clk 0:02:32.1]} 5. O-O {[%clk 0:02:54.9]} 5...
Nf6 {[%clk 0:02:31.6]} 6. Nc3 {[%clk 0:02:54.4]} 6... O-O {[%clk 0:02:27.7]} 7.
d5 {[%clk 0:02:54.3]} 7... Nb8 {[%clk 0:02:27.3]} 8. Be3 {[%clk 0:02:54.2]} 8...
c6 {[%clk 0:02:26.5]} 9. h3 {[%clk 0:02:53]} 9... a6 {[%clk 0:02:24.5]} 10. a4
{[%clk 0:02:50.9]} 10... a5 {[%clk 0:02:24.8]} 11. Re1 {[%clk 0:02:50.2]} 11...
Na6 {[%clk 0:02:24.5]} 12. Bc4 {[%clk 0:02:47.6]} 12... Nb4 {[%clk 0:02:23.9]}
13. Qd2 {[%clk 0:02:42.5]} 13... Bd7 {[%clk 0:02:14.3]} 14. Bb3 {[%clk
0:02:42.1]} 14... Qc7 {[%clk 0:02:12.9]} 15. Bh6 {[%clk 0:02:39.5]} 15... Rae8
{[%clk 0:02:10.6]} 16. Rad1 {[%clk 0:02:36.8]} 16... Bc8 {[%clk 0:01:55.1]} 17.
dxc6 {[%clk 0:02:34.6]} 17... bxc6 {[%clk 0:01:56]} 18. e5 {[%clk 0:02:17.2]}
18... dxe5 {[%clk 0:01:51.9]} 19. Nxe5 {[%clk 0:02:11]} 19... Bf5 {[%clk
0:01:17.3]} 20. Bxg7 {[%clk 0:01:52.1]} 20... Kxg7 {[%clk 0:01:18.2]} 21. Qe2
{[%clk 0:01:51.3]} 21... Nbd5 {[%clk 0:00:57.3]} 22. g4 {[%clk 0:01:40.4]} 22...
Be6 {[%clk 0:00:51.7]} 23. Nxd5 {[%clk 0:01:34.8]} 23... Nxd5 {[%clk 0:00:45.5]}
24. Qf3 {[%clk 0:01:30.8]} 24... Rd8 {[%clk 0:00:27.7]} 25. Nd3 {[%clk
0:01:27.5]} 25... Rd6 {[%clk 0:00:22]} 26. Nc5 {[%clk 0:01:20.7]} 26... Qc8
{[%clk 0:00:15.2]} 27. Nxe6+ {[%clk 0:01:16.1]} 27... fxe6 {[%clk 0:00:16.1]}
28. Qg3 {[%clk 0:01:14.1]} 28... Nf4 {[%clk 0:00:10.8]} 29. c3 {[%clk
0:01:02.9]} 29... c5 {[%clk 0:00:08.9]} 30. Qe3 {[%clk 0:00:53.2]} 30... Qd7
{[%clk 0:00:07.3]} 31. Kh2 {[%clk 0:00:38.4]} 31... g5 {[%clk 0:00:04.9]} 32.
Qxc5 {[%clk 0:00:36.2]} 32... h6 {[%clk 0:00:03.3]} 33. Qe5+ {[%clk 0:00:32.1]}
33... Rf6 {[%clk 0:00:03.3]} 34. Rd4 {[%clk 0:00:29.7]} 34... Qc6 {[%clk
0:00:03.4]} 35. Qe4 {[%clk 0:00:28]} 35... Qxe4 {[%clk 0:00:02.9]} 36. Rexe4
{[%clk 0:00:27.4]} 36... Rxd4 {[%clk 0:00:02.2]} 37. Rxd4 {[%clk 0:00:26.4]}
37... Ne2 {[%clk 0:00:02.1]} 38. Rd7 {[%clk 0:00:24.5]} 38... Rxf2+ {[%clk
0:00:02.1]} 39. Kh1 {[%clk 0:00:25.1]} 39... Ng3+ {[%clk 0:00:01.9]} 40. Kg1
{[%clk 0:00:25.4]} 40... Rf7 {[%clk 0:00:01.6]} 41. Bxe6 {[%clk 0:00:24.6]}
41... Rf6 {[%clk 0:00:02]} 42. Bc4 {[%clk 0:00:23]} 42... Kf8 {[%clk 0:00:02.9]}
43. Ra7 {[%clk 0:00:20.3]} 43... Ne4 {[%clk 0:00:03.2]} 44. Rxa5 {[%clk
0:00:19]} 44... Nd2 {[%clk 0:00:02.7]} 45. Be2 {[%clk 0:00:18]} 45... Nb3 {[%clk
0:00:02.8]} 46. Ra8+ {[%clk 0:00:17.5]} 46... Kg7 {[%clk 0:00:03.5]} 47. a5
{[%clk 0:00:17.6]} 47... Re6 {[%clk 0:00:03.4]} 48. Bf1 {[%clk 0:00:17.4]} 48...
Re1 {[%clk 0:00:03.6]} 49. a6 {[%clk 0:00:17.4]} 49... Nd2 {[%clk 0:00:02.5]}
50. Kf2 {[%clk 0:00:17]} 50... Rxf1+ {[%clk 0:00:02.6]} 51. Ke2 {[%clk
0:00:17.3]} 51... Rh1 {[%clk 0:00:02]} 52. Kxd2 {[%clk 0:00:17.5]} 52... Rxh3
{[%clk 0:00:02.2]} 53. a7 {[%clk 0:00:18]} 53... Rh2+ {[%clk 0:00:02.1]} 54. Kc1
{[%clk 0:00:18.4]} 54... Rh1+ {[%clk 0:00:02.4]} 55. Kc2 {[%clk 0:00:18.8]}
55... Ra1 {[%clk 0:00:03.3]} 56. b4 {[%clk 0:00:17.1]} 56... h5 {[%clk
0:00:03.7]} 57. gxh5 {[%clk 0:00:16.4]} 57... g4 {[%clk 0:00:04.1]} 58. h6+
{[%clk 0:00:16.4]} 58... Kh7 {[%clk 0:00:04.4]} 59. Rf8 {[%clk 0:00:14.5]} 59...
g3 {[%clk 0:00:04.4]} 60. a8=Q {[%clk 0:00:13.6]} 60... Rxa8 {[%clk 0:00:03.6]}
61. Rxa8 {[%clk 0:00:13.7]} 61... g2 {[%clk 0:00:04]} 62. Ra1 {[%clk 0:00:13.7]}
1-0